fUST/lending_fUST_20251208
["ID","MTS","AMOUNT","RATE_DAILY","PERIOD"]
[397272326,1765163432362,-32.25717516,7.781e-05,2]
[397272328,1765163432372,-216.0,7.781e-05,2]
[397272330,1765163432381,-300.0,7.907e-05,2]
[397272332,1765163432390,-1200.0,7.907e-05,2]
[397272334,1765163432399,-482.96029903,7.908e-05,2]
[397272335,1765163432409,-138.78252581,7.908e-05,2]
[397272367,1765163437978,-730.54601244,7.908e-05,2]
[397272369,1765163437989,-14.65589027,7.908e-05,2]
[397272373,1765163438027,-1038.50001,7.908e-05,2]
[397272385,1765163438138,-492.31705661,7.908e-05,2]
[397272387,1765163438148,-2414.80149513,7.908e-05,2]
[397272389,1765163438157,-230.42389802,8.022e-05,2]
[397272391,1765163438167,-1552.56763895,8.023e-05,2]
[397272393,1765163438182,-14379.46498603,8.023e-05,2]
[397272852,1765163443008,-150.0,7.134e-05,2]
[397272854,1765163443017,-254.62,7.782e-05,2]
[397272856,1765163443027,-4614.95120261,8.023e-05,2]
[397273184,1765163446290,-77.12544569,8.023e-05,2]
[397273187,1765163446311,-9144.0618048,8.023e-05,2]
[397279396,1765163834207,148000.0,0.00018,30]
[397279399,1765164062445,150.39,5.1e-05,2]
[397279401,1765164197598,426.26919263,0.0001,3]
[397279405,1765164305267,434.52972351,0.0001,3]
[397279406,1765164358569,-277.80815253,6.84e-05,2]
[397279409,1765164543463,250.0,9.999e-05,3]
[397279410,1765164545943,-667.53918267,6.84e-05,2]
[397279411,1765164545968,-294.34291477,6.978e-05,2]
[397279412,1765164545990,-153.53,7.116e-05,2]
[397279413,1765164546010,-211.0,7.125e-05,2]
[397279414,1765164546028,-290.0,7.136e-05,2]
[397279415,1765164546048,-287.0,7.136e-05,2]
[397279416,1765164546068,-1200.0,7.136e-05,2]
[397279417,1765164546087,-300.0,7.136e-05,2]
[397279418,1765164546107,-481.84222095,7.137e-05,2]
[397279419,1765164546126,-867.31599771,7.137e-05,2]
[397279420,1765164546145,-1541.89510705,7.137e-05,2]
[397279421,1765164546165,-2406.80189366,7.137e-05,2]
[397279422,1765164546184,-506.04973819,7.276e-05,2]
[397279423,1765164546203,-500.0,7.276e-05,2]
[397279424,1765164546228,-541.2495716,7.276e-05,2]
[397279425,1765164546250,-500.0,7.276e-05,2]
[397279426,1765164546271,-500.0,7.276e-05,2]
[397279427,1765164546295,-500.0,7.276e-05,2]
[397279428,1765164546317,-500.0,7.276e-05,2]
[397279429,1765164546338,-500.0,7.276e-05,2]
[397279430,1765164546358,-500.0,7.276e-05,2]
[397279431,1765164546381,-500.0,7.276e-05,2]
[397279432,1765164546404,-183.47921492,7.276e-05,2]
[397279433,1765164546431,-300.0,7.279e-05,2]
[397279434,1765164546455,-300.0,7.279e-05,2]
[397279435,1765164546477,-300.0,7.279e-05,2]
[397279436,1765164546501,-300.0,7.279e-05,2]
[397279437,1765164546522,-300.0,7.279e-05,2]
[397279438,1765164546544,-300.0,7.279e-05,2]
[397279439,1765164546564,-300.0,7.279e-05,2]
[397279440,1765164546883,-300.0,7.279e-05,2]
[397279441,1765164546907,-300.0,7.279e-05,2]
[397279442,1765164546929,-300.0,7.279e-05,2]
[397279443,1765164546951,-300.0,7.279e-05,2]
[397279444,1765164546972,-300.0,7.279e-05,2]
[397279445,1765164546992,-300.0,7.279e-05,2]
[397279446,1765164547013,-300.0,7.279e-05,2]
[397279447,1765164547033,-300.0,7.279e-05,2]
[397279448,1765164547055,-307.06,7.763e-05,2]
[397279449,1765164547076,-600.0,7.812e-05,2]
[397279450,1765164547096,-296.33049601,7.828e-05,2]
[397279451,1765164547117,-1355.74638146,7.828e-05,2]
[397279452,1765164547137,-169.77119232,7.828e-05,2]
[397279453,1765164547157,-1550.0,7.85e-05,2]
[397279454,1765164547176,-420.0,7.85e-05,2]
[397279455,1765164547197,-1701.26670807,7.871e-05,2]
[397279456,1765164566122,-490.0,7.871e-05,2]
[397279457,1765164602393,152.38,5.1e-05,2]
[397279458,1765164602731,152.38,5.4e-05,2]
[397279459,1765164603044,152.38,5.7e-05,2]
[397279460,1765164603344,152.38,6e-05,2]
[397279461,1765164603670,152.38,6.3e-05,2]
[397279462,1765164604165,152.38,6.6e-05,2]
[397279529,1765164632209,-152.38,6.9e-05,2]
[397279531,1765164632219,-209.0,6.9e-05,2]
[397279533,1765164632228,-152.38,7.2e-05,2]
[397279535,1765164632238,-150.0,7.217e-05,2]
[397279537,1765164632247,-152.38,7.6e-05,2]
[397279539,1765164632256,-2230.315306,7.847e-05,2]
[397279541,1765164632265,-295.34,7.873e-05,2]
[397279543,1765164632274,-152.38,7.9e-05,2]
[397279545,1765164632284,-300.0,7.922e-05,2]
[397279547,1765164632293,-13245.14200972,7.923e-05,2]
[397279616,1765164638020,-464.83102388,7.922e-05,2]
[397279618,1765164638030,-2826.23340987,7.923e-05,2]
[397279624,1765164638071,-6198.9802446,7.923e-05,2]
[397279626,1765164638082,-9904.85776516,7.923e-05,2]
[397279628,1765164638092,-22562.70210381,7.923e-05,2]
[397279630,1765164638103,-21015.40392329,7.923e-05,2]
[397279632,1765164638114,-6507.69598706,7.923e-05,2]
[397280001,1765164641938,-0.0184194,7.923e-05,2]
[397280003,1765164641949,-1086.86268639,7.923e-05,2]
[397280008,1765164641978,-614.8492,7.923e-05,2]
[397280133,1765164643142,-768.90923381,7.923e-05,2]
[397280401,1765164646063,-391.50697925,7.923e-05,2]
[397280403,1765164646074,-37552.67241685,7.923e-05,2]
[397282928,1765164671833,154.58,5.1e-05,2]
[397282962,1765164672152,154.58,5.5e-05,2]
[397282989,1765164672420,154.58,5.8e-05,2]
[397283017,1765164672699,154.58,6.2e-05,2]
[397283029,1765164673026,154.58,6.5e-05,2]
[397287232,1765164732194,154.58,5.1e-05,2]
[397287233,1765164732464,154.58,5.5e-05,2]
[397287234,1765164732742,154.58,6e-05,2]
[397287235,1765164733013,154.58,6.4e-05,2]
[397287236,1765164788236,175.65,5.1e-05,2]
[397287237,1765164788590,175.65,5.3e-05,2]
[397287238,1765164788960,175.65,5.5e-05,2]
[397287239,1765164789901,175.65,5.6e-05,2]
[397287240,1765164790292,175.65,5.8e-05,2]
[397287241,1765164790771,175.65,6e-05,2]
[397287242,1765164791054,175.65,6.2e-05,2]
[397287243,1765164791330,175.65,6.4e-05,2]
[397287244,1765164791622,175.65,6.6e-05,2]
[397287245,1765164792258,175.65,6.7e-05,2]
[397287248,1765164856902,155.75,5.1e-05,2]
[397287249,1765164857226,155.75,5.3e-05,2]
[397287250,1765164857648,155.75,5.5e-05,2]
[397287251,1765164857922,155.75,5.6e-05,2]
[397287252,1765164858833,155.75,5.8e-05,2]
[397287253,1765164859186,155.75,6e-05,2]
[397287254,1765164859464,155.75,6.2e-05,2]
[397287255,1765164859808,155.75,6.4e-05,2]
[397287256,1765164860189,155.75,6.6e-05,2]
[397287257,1765164860546,155.75,6.7e-05,2]
[397287258,1765164915984,151.98,5.1e-05,2]
[397287259,1765164916353,151.98,5.3e-05,2]
[397287260,1765164916747,151.98,5.5e-05,2]
[397287261,1765164917427,151.98,5.7e-05,2]
[397287262,1765164917517,151.98,5.9e-05,2]
[397287263,1765164917674,151.98,6.1e-05,2]
[397287264,1765164917976,151.98,6.3e-05,2]
[397287265,1765164918299,151.98,6.5e-05,2]
[397287266,1765164918876,151.98,6.7e-05,2]
[397287269,1765164974807,152.01,5.1e-05,2]
[397287270,1765164975079,152.01,5.3e-05,2]
[397287271,1765164975417,152.01,5.5e-05,2]
[397287272,1765164975760,152.01,5.8e-05,2]
[397287273,1765164976091,152.01,6e-05,2]
[397287274,1765164976568,152.01,6.2e-05,2]
[397287275,1765164976848,152.01,6.4e-05,2]
[397287276,1765164977194,152.01,6.7e-05,2]
[397287277,1765165034586,152.01,5.1e-05,2]
[397287278,1765165034889,152.01,5.4e-05,2]
[397287279,1765165035175,152.01,5.7e-05,2]
[397287280,1765165035521,152.01,5.9e-05,2]
[397287281,1765165035817,152.01,6.2e-05,2]
[397287282,1765165036098,152.01,6.5e-05,2]
[397287283,1765165092101,152.02,5.1e-05,2]
[397287284,1765165092392,152.02,5.4e-05,2]
[397287285,1765165092722,152.02,5.8e-05,2]
[397287286,1765165093057,152.02,6.1e-05,2]
[397287287,1765165093412,152.02,6.4e-05,2]
[397287288,1765165093710,152.02,6.7e-05,2]
[397287289,1765165123415,3528.9193196,0.000211,120]
[397287291,1765165150272,152.04,5.1e-05,2]
[397287292,1765165150693,152.04,5.5e-05,2]
[397287293,1765165151044,152.04,5.9e-05,2]
[397287294,1765165151507,152.04,6.3e-05,2]
[397287295,1765165151858,152.04,6.7e-05,2]
[397287298,1765165158315,151.95,5.1e-05,2]
[397287299,1765165208300,152.04,5.1e-05,2]
[397287300,1765165208621,152.04,5.7e-05,2]
[397287301,1765165208900,152.04,6.2e-05,2]
[397287302,1765165270160,152.04,5.1e-05,2]
[397287303,1765165270463,152.04,5.8e-05,2]
[397287304,1765165270904,152.04,6.5e-05,2]
[397287305,1765165322190,264.7,6e-05,30]
[397287306,1765165326859,152.04,5.1e-05,2]
[397287307,1765165327140,152.04,6e-05,2]
[397287308,1765165386609,152.04,5.1e-05,2]
[397287309,1765165386864,152.04,6.2e-05,2]
[397287312,1765165446499,152.04,5.1e-05,2]
[397287313,1765165446895,152.04,6.6e-05,2]
[397287315,1765165505133,152.04,5.1e-05,2]
[397287316,1765165509442,196.38539963,0.000211,99]
[397287317,1765165518334,164.48345794,0.0001,3]
[397287318,1765165552196,-210.0,7.05e-05,2]
[397287319,1765165552219,-151.27311806,7.161e-05,2]
[397287320,1765165565950,152.04,5.1e-05,2]
[397287321,1765165592138,518.63,0.000211,99]
[397287322,1765165624352,152.04,5.1e-05,2]
[397287323,1765165626092,-140.9474443,7.161e-05,2]
[397287324,1765165626116,-160.93,7.278e-05,2]
[397287325,1765165626137,-500.0,7.77e-05,2]
[397287326,1765165626158,-516.54029904,7.77e-05,2]
[397287327,1765165626177,-500.0,7.77e-05,2]
[397287328,1765165626196,-300.0,7.77e-05,2]
[397287329,1765165626215,-7349.29942515,7.771e-05,2]
[397287330,1765165631144,-619.59833132,7.771e-05,2]
[397287331,1765165642081,-1532.50790529,7.771e-05,2]
[397287332,1765165684102,152.04,5.1e-05,2]
[397287333,1765165743551,250.0,9.999e-05,3]
[397287334,1765165744035,250.0,5.999e-05,3]
[397287335,1765165744118,152.04,5.1e-05,2]
[397287336,1765165745147,-2820.7505137,6.862e-05,2]
[397287337,1765165745168,-158.88,7.275e-05,2]
[397287338,1765165745186,-330.81983044,7.422e-05,2]
[397287339,1765165745204,-595.47569479,7.422e-05,2]
[397287340,1765165745223,-1058.6234574,7.422e-05,2]
[397287341,1765165745242,-300.0,7.77e-05,2]
[397287342,1765165745260,-10498.59433824,7.771e-05,2]
[397287343,1765165745278,-792.0,7.812e-05,2]
[397287344,1765165745297,-337.23067943,7.813e-05,2]
[397287345,1765165745563,-607.01522297,7.813e-05,2]
[397287346,1765165745585,-1079.13817418,7.813e-05,2]
[397287347,1765165745604,-300.0,7.821e-05,2]
[397287348,1765165745624,-300.0,7.821e-05,2]
[397287349,1765165745649,-42558.26348703,7.823e-05,2]
[397287350,1765165754099,-74480.0,7.823e-05,2]
[397287351,1765165759104,-125044.82191333,7.823e-05,2]
[397287368,1765165832042,-171.33,7.274e-05,2]
[397287369,1765165832052,-212.0,7.274e-05,2]
[397287370,1765165832061,-20000.0,7.771e-05,2]
[397287371,1765165832070,-200.0,7.818e-05,2]
[397287372,1765165832079,-2231.2215614,7.818e-05,2]
[397287395,1765165838175,-2104.51139346,7.818e-05,2]
[397287397,1765165838185,-1018.46017042,7.818e-05,2]
[397287399,1765165838195,-253.20789443,7.818e-05,2]
[397287401,1765165838205,-2230.315306,7.818e-05,2]
[397287403,1765165838214,-300.0,7.822e-05,2]
[397287405,1765165838223,-300.0,7.822e-05,2]
[397287407,1765165838232,-408.0,7.822e-05,2]
[397287409,1765165838243,-8177.77423293,7.823e-05,2]
[397287476,1765165838869,-1240.57271128,7.823e-05,2]
[397287478,1765165838882,-4404.5433117,7.823e-05,2]
[397287482,1765165838905,-4114.16,7.823e-05,2]
[397287484,1765165838916,-23322.64253795,7.823e-05,2]
[397287486,1765165838927,-3484.07439681,7.823e-05,2]
[397287628,1765165840259,-25416.18009161,7.823e-05,2]
[397287630,1765165840270,-594.4003059,7.823e-05,2]
[397287636,1765165840314,-642.33246819,7.823e-05,2]
[397287638,1765165840325,-1242.57155899,7.823e-05,2]
[397287640,1765165840336,-1595.8,7.823e-05,2]
[397287642,1765165840347,-8015.87471478,7.823e-05,2]
[397287644,1765165840357,-1525.57541363,7.823e-05,2]
[397288149,1765165845445,-9640.72214699,7.823e-05,2]
[397288150,1765165845497,-8544.43203038,7.823e-05,2]
[397288151,1765165845509,-5533.5400021,7.823e-05,2]
[397288219,1765165846178,-28397.49524193,7.823e-05,2]
[397295795,1765165982246,150.51,5.1e-05,2]
[397295796,1765165982780,150.51,6.2e-05,2]
[397295797,1765165985679,150.47,5.1e-05,2]
[397295799,1765166045602,150.51,5.1e-05,2]
[397295801,1765166105648,150.51,5.1e-05,2]
[397295804,1765166165373,150.51,5.1e-05,2]
[397295806,1765166225968,150.51,5.1e-05,2]
[397295808,1765166284216,150.51,5.1e-05,2]
[397295810,1765166347199,150.51,5.1e-05,2]
[397295817,1765166828146,-211.0,6.878e-05,2]
[397295818,1765166828168,-299.68062031,6.913e-05,2]
[397295819,1765166828190,-222.46,6.941e-05,2]
[397295820,1765166828212,-211.0,6.947e-05,2]
[397295821,1765166828234,-211.0,7.088e-05,2]
[397295822,1765166828257,-281.39670768,7.272e-05,2]
[397295823,1765166845189,211.0,6.674e-05,2]
[397295824,1765166847091,-211.0,6.741e-05,2]
[397295825,1765166847110,-211.0,6.809e-05,2]
[397295826,1765166847131,-220.93,6.948e-05,2]
[397295827,1765166847155,-441.85,7.279e-05,2]
[397295828,1765166847174,-356.77904189,7.49e-05,2]
[397295829,1765166847193,-407.74747645,7.49e-05,2]
[397295830,1765166847215,-160.425,7.569e-05,2]
[397295831,1765166847236,-250.72049314,7.641e-05,2]
[397295832,1765166847255,-300.0,7.667e-05,2]
[397295833,1765166847275,-300.0,7.667e-05,2]
[397295834,1765166847294,-1200.0,7.667e-05,2]
[397295835,1765166847313,-300.0,7.667e-05,2]
[397295836,1765166847333,-500.0,7.668e-05,2]
[397295837,1765166847355,-180.98115855,7.668e-05,2]
[397295838,1765166847376,-500.0,7.668e-05,2]
[397295839,1765166847396,-500.0,7.668e-05,2]
[397295840,1765166847416,-500.0,7.668e-05,2]
[397295841,1765166847435,-340.77121809,7.668e-05,2]
[397295842,1765166847454,-20000.0,7.669e-05,2]
[397295843,1765166847472,-175.1032274,7.718e-05,2]
[397295844,1765166847491,-2230.315306,7.718e-05,2]
[397295845,1765166847515,-87142.17305122,7.723e-05,2]
[397295846,1765166849124,-662.78,7.61e-05,2]
[397295847,1765166849151,-68983.70085908,7.723e-05,2]
[397295851,1765166942491,250.0,9.998e-05,3]
[397295852,1765166946133,-204.05,6.953e-05,2]
[397295853,1765166946155,-408.11,7.284e-05,2]
[397295854,1765166946183,-204.53013534,7.493e-05,2]
[397295855,1765166946204,-300.0,7.493e-05,2]
[397295856,1765166946226,-4948.94076339,7.494e-05,2]
[397295857,1765166949082,-1217.88247673,7.494e-05,2]
[397295858,1765166950271,-42073.33833244,7.494e-05,2]
[397295859,1765166950294,-48240.16157256,7.57e-05,2]
[397295860,1765166950317,-612.16,7.615e-05,2]
[397295861,1765166950337,-48240.16157256,7.646e-05,2]
[397295862,1765166950364,-173711.9883273,7.723e-05,2]
[397295863,1765166960093,-42073.33833244,7.419e-05,2]
[397295864,1765166960118,-5511.90213082,7.723e-05,2]
[397295924,1765167032712,-188.47,7.146e-05,2]
[397295925,1765167032722,-376.94,7.487e-05,2]
[397295926,1765167032731,-300.0,7.569e-05,2]
[397295927,1765167032740,-214.0,7.569e-05,2]
[397295928,1765167032750,-48665.39684192,7.57e-05,2]
[397295971,1765167038388,-7738.49787323,7.57e-05,2]
[397295973,1765167038399,-10634.27124687,7.57e-05,2]
[397296194,1765167040622,-12936.64399697,7.57e-05,2]
[397296774,1765167046300,-4209.49955301,7.57e-05,2]
[397306894,1765167182169,176.89,5.1e-05,2]
[397306924,1765167244760,176.89,5.1e-05,2]
[397306954,1765167304680,176.89,5.1e-05,2]
[397306968,1765167328154,1390.22981691,0.0001,3]
[397306984,1765167364101,176.89,5.1e-05,2]
[397307033,1765167424800,176.89,5.1e-05,2]
[397307064,1765167539531,181.28,6.683e-05,2]
[397307067,1765167563288,304.23677802,6.65e-05,2]
[397307070,1765167585886,304.23677802,6.65e-05,2]
[397307075,1765167607768,304.23677802,6.65e-05,2]
[397307076,1765167614938,9238.2156086,6.151e-05,2]
[397307079,1765167630171,819.23677802,6.65e-05,2]
[397307083,1765167673648,819.23677802,6.65e-05,2]
[397307086,1765167695619,819.23677802,6.65e-05,2]
[397307089,1765167718210,819.23677802,6.65e-05,2]
[397307124,1765167740075,819.23677802,6.65e-05,2]
[397307137,1765167748109,819.23677802,6.65e-05,2]
[397307155,1765167763338,515.0,6.65e-05,2]
[397307156,1765167771064,515.0,6.65e-05,2]
[397307160,1765167787233,515.0,6.65e-05,2]
[397307161,1765167794958,515.0,6.65e-05,2]
[397307162,1765167810154,515.0,6.65e-05,2]
[397307163,1765167817856,515.0,6.65e-05,2]
[397307165,1765167832943,515.0,6.65e-05,2]
[397307166,1765167840948,515.0,6.65e-05,2]
[397307169,1765167844391,179.32762853,6.691e-05,2]
[397307170,1765167855856,515.0,6.65e-05,2]
[397307171,1765167864496,515.0,6.65e-05,2]
[397307173,1765167878632,249306.8711862,0.00014,19]
[397307174,1765167879595,515.0,6.65e-05,2]
[397307176,1765167887314,515.0,6.65e-05,2]
[397307182,1765167903575,515.0,6.65e-05,2]
[397307183,1765167910954,231695.79126434,0.00013,9]
[397307184,1765167911279,515.0,6.65e-05,2]
[397307185,1765167926342,5000.0,6.7e-05,2]
[397307186,1765167934122,5000.0,6.7e-05,2]
[397307187,1765167949176,5000.0,6.7e-05,2]
[397307190,1765167952117,-308.52391906,6.717e-05,2]
[397307191,1765167957501,5000.0,6.7e-05,2]
[397307195,1765167972702,5000.0,6.7e-05,2]
[397307196,1765167980447,5000.0,6.7e-05,2]
[397307197,1765167996483,5000.0,6.7e-05,2]
[397307198,1765168004772,5000.0,6.7e-05,2]
[397307199,1765168019876,5000.0,6.7e-05,2]
[397307208,1765168027673,5000.0,6.7e-05,2]
[397307216,1765168037085,-206.47608094,6.717e-05,2]
[397307217,1765168037107,-304.23677802,6.734e-05,2]
[397307218,1765168037131,-203.51,6.988e-05,2]
[397307219,1765168037152,-300.0,7.098e-05,2]
[397307220,1765168037173,-300.0,7.098e-05,2]
[397307221,1765168037195,-179.0,7.098e-05,2]
[397307222,1765168037216,-300.0,7.098e-05,2]
[397307223,1765168037237,-160.425,7.099e-05,2]
[397307224,1765168037258,-500.0,7.099e-05,2]
[397307225,1765168037280,-228.55757346,7.099e-05,2]
[397307230,1765168048109,-255.06327991,7.028e-05,2]
[397307273,1765168097423,216.4550469,6.135e-05,2]
[397307280,1765168142750,250.0,9.999e-05,3]
[397307281,1765168145073,-200.91,6.948e-05,2]
[397307282,1765168145094,-964.32894332,6.958e-05,2]
[397307283,1765168150116,-793.32349713,6.958e-05,2]
[397307284,1765168150137,-4744.93672009,7.028e-05,2]
[397307285,1765168150157,-300.0,7.097e-05,2]
[397307286,1765168150177,-500.0,7.098e-05,2]
[397307287,1765168150198,-500.0,7.098e-05,2]
[397307288,1765168150219,-500.0,7.098e-05,2]
[397307289,1765168150239,-500.0,7.098e-05,2]
[397307290,1765168150259,-500.0,7.098e-05,2]
[397307291,1765168150280,-500.0,7.098e-05,2]
[397307292,1765168150302,-500.0,7.098e-05,2]
[397307293,1765168150337,-494.29818389,7.098e-05,2]
[397307294,1765168150357,-13843.80387072,7.1e-05,2]
[397307295,1765168155113,-17922.68833152,7.1e-05,2]
[397307296,1765168155135,-300.0,7.241e-05,2]
[397307297,1765168155156,-300.0,7.241e-05,2]
[397307298,1765168155177,-300.0,7.241e-05,2]
[397307299,1765168155198,-300.0,7.241e-05,2]
[397307300,1765168155219,-300.0,7.241e-05,2]
[397307301,1765168155239,-300.0,7.241e-05,2]
[397307302,1765168155260,-300.0,7.241e-05,2]
[397307303,1765168155280,-300.0,7.241e-05,2]
[397307304,1765168155312,-300.0,7.241e-05,2]
[397307305,1765168155333,-300.0,7.241e-05,2]
[397307306,1765168155358,-300.0,7.241e-05,2]
[397307307,1765168155379,-300.0,7.241e-05,2]
[397307308,1765168155401,-300.0,7.241e-05,2]
[397307309,1765168155422,-300.0,7.241e-05,2]
[397307310,1765168155443,-300.0,7.241e-05,2]
[397307311,1765168155465,-401.83,7.279e-05,2]
[397307312,1765168155485,-111.98677811,7.385e-05,2]
[397307313,1765168160097,-488.01322189,7.385e-05,2]
[397307314,1765168160117,-535.85286426,7.58e-05,2]
[397307315,1765168160137,-2230.315306,7.58e-05,2]
[397307316,1765168160159,-422.25394914,7.61e-05,2]
[397307368,1765168232586,-28.34036444,7.143e-05,2]
[397307369,1765168232609,-159.52963556,7.143e-05,2]
[397307370,1765168232618,-481.13172909,7.143e-05,2]
[397307371,1765168232630,-39.86827091,7.143e-05,2]
[397307372,1765168232639,-375.74,7.483e-05,2]
[397307373,1765168232648,-2230.315306,7.484e-05,2]
[397307374,1765168232657,-819.50642309,7.534e-05,2]
[397308122,1765168246531,-604.017359,7.534e-05,2]
[397320763,1765168382389,157.55,5.1e-05,2]
[397325933,1765168568259,426.68113032,0.0001,3]
[397325987,1765168684327,187.31,6.693e-05,2]
[397325988,1765168684600,187.31,6.693e-05,2]
[397325989,1765168684905,187.31,6.693e-05,2]
[397326045,1765168748829,5000.0,6.7e-05,2]
[397326055,1765168771091,5000.0,6.7e-05,2]
[397326066,1765168793416,5000.0,6.7e-05,2]
[397326081,1765168815739,5000.0,6.7e-05,2]
[397326090,1765168838332,5000.0,6.7e-05,2]
[397326100,1765168860759,5000.0,6.7e-05,2]
[397326118,1765168883447,5000.0,6.7e-05,2]
[397326127,1765168905831,5000.0,6.7e-05,2]
[397326140,1765168928143,5000.0,6.7e-05,2]
[397326157,1765168950494,5000.0,6.7e-05,2]
[397326179,1765168972777,5000.0,6.7e-05,2]
[397326190,1765168995483,5000.0,6.7e-05,2]
[397326204,1765169017549,5000.0,6.7e-05,2]
[397326216,1765169039881,5000.0,6.7e-05,2]
[397326226,1765169062106,5000.0,6.7e-05,2]
[397326238,1765169084962,3554.81489389,6.7e-05,2]
[397326297,1765169228077,-426.60559211,6.7e-05,2]
[397326298,1765169231109,-619.59833132,6.7e-05,2]
[397326299,1765169239084,-398.98118268,6.7e-05,2]
[397326300,1765169239108,-35.89077741,6.823e-05,2]
[397326301,1765169253069,-285.07569793,6.823e-05,2]
[397326302,1765169253088,-43.12735454,6.823e-05,2]
[397326456,1765169344240,250.0,9.999e-05,3]
[397326459,1765169348095,-285.07569793,6.755e-05,2]
[397326460,1765169348121,-317.57260819,6.789e-05,2]
[397326461,1765169348147,-473.87264546,6.823e-05,2]
[397326462,1765169348171,-250.0,6.849e-05,2]
[397326463,1765169348201,-243.74,6.946e-05,2]
[397326464,1765169348226,-150.49876264,7.013e-05,2]
[397326465,1765169348251,-32.4792291,7.013e-05,2]
[397326467,1765169355106,-179.20120902,7.013e-05,2]
[397326468,1765169355129,-380.64376383,7.013e-05,2]
[397326469,1765169355149,-300.0,7.056e-05,2]
[397326470,1765169355169,-1200.0,7.057e-05,2]
[397326471,1765169355187,-300.0,7.057e-05,2]
[397326472,1765169355209,-500.0,7.057e-05,2]
[397326473,1765169355229,-500.0,7.057e-05,2]
[397326474,1765169355249,-387.98946276,7.057e-05,2]
[397326475,1765169355268,-982.40527441,7.058e-05,2]
[397326476,1765169355288,-1746.49826562,7.058e-05,2]
[397326477,1765169355308,-2728.90354003,7.058e-05,2]
[397326478,1765169355327,-545.78070801,7.06e-05,2]
[397326479,1765169355347,-500.0,7.198e-05,2]
[397326480,1765169355366,-269.5,7.198e-05,2]
[397326481,1765169355388,-300.0,7.199e-05,2]
[397326482,1765169355410,-300.0,7.199e-05,2]
[397326483,1765169355430,-300.0,7.199e-05,2]
[397326484,1765169355450,-300.0,7.199e-05,2]
[397326485,1765169355471,-300.0,7.199e-05,2]
[397326486,1765169355490,-300.0,7.199e-05,2]
[397326487,1765169355510,-300.0,7.199e-05,2]
[397326488,1765169355530,-300.0,7.199e-05,2]
[397326489,1765169355550,-300.0,7.199e-05,2]
[397326490,1765169355570,-300.0,7.199e-05,2]
[397326491,1765169355591,-300.0,7.199e-05,2]
[397326492,1765169355611,-300.0,7.199e-05,2]
[397326493,1765169355631,-300.0,7.199e-05,2]
[397326494,1765169355652,-237.90781938,7.199e-05,2]
[397326500,1765169361350,-62.09218062,7.199e-05,2]
[397326501,1765169361372,-300.0,7.199e-05,2]
[397326502,1765169361394,-487.49,7.277e-05,2]
[397326503,1765169361413,-307.56894028,7.384e-05,2]
[397326504,1765169361433,-408.36009829,7.384e-05,2]
[397326505,1765169363112,-145.26399421,7.384e-05,2]
[397326506,1765169363135,-984.22060889,7.384e-05,2]
[397326507,1765169363156,-4335.73295486,7.425e-05,2]
[397326508,1765169363177,-2230.315306,7.425e-05,2]
[397326509,1765169363198,-4496.15507419,7.48e-05,2]
[397326510,1765169363222,-262.17858438,7.5e-05,2]
[397326515,1765169368064,-227.26988082,7.127e-05,2]
[397326569,1765169432582,-234.44,6.938e-05,2]
[397326570,1765169432591,-134.8222998,7.127e-05,2]
[397326571,1765169432600,-521.0,7.127e-05,2]
[397326572,1765169432610,-4738.3129093,7.232e-05,2]
[397326573,1765169432619,-468.88,7.268e-05,2]
[397326574,1765169432628,-160.42211933,7.413e-05,2]
[397326575,1765169432638,-2230.315306,7.413e-05,2]
[397326576,1765169432647,-256.43555415,7.5e-05,2]
[397326577,1765169432656,-300.0,7.517e-05,2]
[397326578,1765169432665,-190.0,7.517e-05,2]
[397326579,1765169432674,-157.694,7.518e-05,2]
[397326580,1765169432684,-183.08640742,7.518e-05,2]
[397326581,1765169432693,-250.0,7.518e-05,2]
[397326582,1765169432703,-250.0,7.518e-05,2]
[397326583,1765169432713,-250.0,7.518e-05,2]